bitfinex/quotes_BTCUSD_20251230
["timestamp","ask_amount","ask_price","bid_price","bid_amount"]
[1767071828942,0.0107238,87352.0,87341.0,0.01144937]
[1767071829160,0.0107238,87351.0,87339.0,0.01144963]
[1767071829552,0.02217186,87351.0,87339.0,0.01144963]
[1767071829760,0.0107238,87350.0,87339.0,0.01144963]
[1767071830339,0.0107238,87350.0,87338.0,0.02292976]
[1767071830587,0.0107238,87350.0,87339.0,0.01144963]
[1767071831588,0.06868656,87354.0,87340.0,0.0114495]
[1767071831773,0.01144767,87354.0,87340.0,0.1464995]
[1767071832104,0.01144767,87354.0,87340.0,0.0114495]
[1767071832260,0.0114478,87353.0,87341.0,0.14649937]
[1767071832458,0.01144767,87354.0,87341.0,0.14649937]
[1767071832698,0.01144727,87357.0,87344.0,0.01144898]
[1767071833009,0.01144727,87357.0,87341.0,0.14649937]
[1767071833010,0.02292754,87355.0,87343.0,0.01144911]
[1767071833173,0.01144741,87356.0,87344.0,0.01144898]
[1767071833354,0.08016294,87358.0,87344.0,0.01144898]
[1767071833801,0.08016294,87358.0,87343.0,0.01144911]
[1767071834014,0.08016294,87358.0,87344.0,0.01144898]
[1767071834847,0.01144754,87355.0,87343.0,0.01144911]
[1767071834995,0.01144741,87356.0,87344.0,0.01144898]
[1767071835192,0.08016294,87358.0,87344.0,0.01144898]
[1767071836247,0.01144741,87356.0,87344.0,0.01144898]
[1767071837024,0.01144741,87356.0,87342.0,0.01144924]
[1767071837347,0.01144767,87354.0,87342.0,0.01144924]
[1767071837552,0.01144754,87355.0,87343.0,0.01144911]
[1767071837846,0.01144754,87355.0,87342.0,0.01144924]
[1767071837994,0.01144754,87355.0,87343.0,0.01144911]
[1767071839852,0.01144767,87354.0,87341.0,0.01144937]
[1767071840181,0.0114478,87353.0,87341.0,0.01144937]
[1767071840377,0.01144767,87354.0,87341.0,0.01144937]
[1767071840726,0.0114478,87353.0,87342.0,0.01144924]
[1767071841256,0.0114478,87353.0,87341.0,0.01144937]
[1767071841583,0.01144767,87354.0,87341.0,0.01144937]
[1767071842644,0.0114478,87353.0,87341.0,0.01144937]
[1767071843447,0.01144767,87354.0,87341.0,0.01144937]
[1767071843671,0.02217505,87353.0,87341.0,0.01144937]
[1767071843983,0.01072725,87352.0,87341.0,0.01144937]
[1767071844398,0.0114478,87353.0,87341.0,0.01144937]
[1767071844541,0.01144767,87354.0,87341.0,0.01144937]
[1767071844942,0.01144767,87354.0,87340.0,0.53111409]
[1767071845597,0.0114478,87353.0,87340.0,0.53111409]
[1767071845817,0.0114478,87353.0,87341.0,0.01144937]
[1767071846002,0.01144767,87354.0,87341.0,0.01144937]
[1767071846990,0.01144767,87354.0,87340.0,0.53111409]
[1767071846991,0.0114478,87353.0,87340.0,0.53111409]
[1767071848043,0.0114478,87353.0,87341.0,0.01144937]
[1767071848246,0.01144767,87354.0,87342.0,0.01144924]
[1767071849389,0.01144767,87354.0,87341.0,0.01144937]
[1767071850212,0.01144767,87354.0,87342.0,0.01144924]
[1767071850429,0.0114478,87353.0,87341.0,0.01144937]
[1767071851016,0.01144767,87354.0,87342.0,0.01144924]
[1767071851219,0.01144767,87354.0,87341.0,0.01144937]
[1767071851421,0.0114478,87353.0,87341.0,0.01144937]
[1767071852185,0.000549,87341.0,87332.0,0.01145055]
[1767071852406,0.01144976,87338.0,87330.0,0.0001461]
[1767071852631,0.000549,87341.0,87311.0,0.01145331]
[1767071852632,0.01145147,87325.0,87311.0,0.01145331]
[1767071852853,0.02293094,87329.0,87315.0,0.01145278]
[1767071853059,0.01145108,87328.0,87316.0,0.00825572]
[1767071853204,0.02293094,87329.0,87316.0,0.00825572]
[1767071853527,0.01145108,87328.0,87315.0,0.01145278]
[1767071853683,0.01145108,87328.0,87314.0,0.01145291]
[1767071853684,0.01145134,87326.0,87312.0,0.01148498]
[1767071853924,0.01145134,87326.0,87312.0,0.05727082]
[1767071854649,0.01145134,87326.0,87314.0,0.01145291]
[1767071854850,0.01145147,87325.0,87312.0,0.01148082]
[1767071854989,0.01145213,87320.0,87312.0,0.01093182]
[1767071855208,0.51966459,87322.0,87312.0,0.01093182]
[1767071855412,0.51966459,87322.0,87311.0,0.00898513]
[1767071855817,0.51966459,87322.0,87310.0,0.02293344]
[1767071856053,0.51966459,87320.0,87310.0,0.02293344]
[1767071856251,0.51966459,87320.0,87310.0,0.01148]
[1767071857698,0.53111672,87320.0,87310.0,0.01148]
[1767071857899,0.51966459,87320.0,87310.0,0.01148]
[1767071858106,0.51966459,87320.0,87310.0,0.02293344]
[1767071858523,0.53111672,87320.0,87310.0,0.01148]
[1767071858734,0.51966459,87320.0,87310.0,0.01148]
[1767071858974,0.53111672,87320.0,87310.0,0.01148]
[1767071859564,0.01145226,87319.0,87310.0,0.01148]
[1767071860193,0.53111672,87320.0,87310.0,0.01148]
[1767071860420,0.51966459,87320.0,87310.0,0.01148]
[1767071860625,0.01145186,87322.0,87310.0,0.01148]
[1767071860798,0.51966459,87320.0,87310.0,0.01148]
[1767071863604,0.01145226,87319.0,87310.0,0.01148]
[1767071863818,0.51966459,87320.0,87310.0,0.01148]
[1767071864054,0.01145252,87317.0,87310.0,0.01148]
[1767071864459,0.01145239,87318.0,87306.0,2.76e-06]
[1767071864665,0.01145252,87317.0,87306.0,2.76e-06]
[1767071864873,0.01145239,87318.0,87306.0,0.01145672]
[1767071865290,0.51966459,87316.0,87306.0,0.01145672]
[1767071865515,0.01145252,87317.0,87306.0,2.76e-06]
[1767071866321,0.01145239,87318.0,87306.0,0.01145672]
[1767071867862,0.01145239,87318.0,87306.0,2.76e-06]
[1767071868318,0.01145252,87317.0,87306.0,2.76e-06]
[1767071868941,0.01145265,87316.0,87306.0,2.76e-06]
[1767071869399,0.01145278,87315.0,87306.0,2.76e-06]
[1767071869611,0.01145265,87316.0,87306.0,2.76e-06]
[1767071870025,0.01145252,87317.0,87306.0,2.76e-06]
[1767071870899,0.01145304,87313.0,87306.0,2.76e-06]
[1767071871094,0.01145304,87313.0,87300.0,0.06892839]
[1767071871095,0.01145317,87312.0,87299.0,0.02293488]
[1767071871304,0.01145291,87314.0,87301.0,0.01145462]
[1767071871518,0.51966459,87310.0,87301.0,0.01145462]
[1767071871733,0.01145278,87315.0,87303.0,0.01145436]
[1767071871945,0.01145252,87317.0,87303.0,0.01145436]
[1767071872388,0.01145226,87319.0,87305.0,0.01145409]
[1767071872550,0.01148,87316.0,87303.0,0.01145436]
[1767071872915,0.01148,87316.0,87304.0,0.01145422]
[1767071873116,0.02293265,87316.0,87304.0,0.01145422]
[1767071873324,0.02293265,87316.0,87303.0,0.01145436]
[1767071873527,0.01145278,87315.0,87300.0,0.58839256]
[1767071873730,0.01145291,87314.0,87302.0,0.01145449]
[1767071873925,0.01145278,87315.0,87302.0,0.01145449]
[1767071874364,0.01145291,87314.0,87302.0,0.01145449]
[1767071874576,0.01145278,87315.0,87302.0,0.01145449]
[1767071875376,0.01145291,87314.0,87302.0,0.01145449]
[1767071875729,0.01145304,87313.0,87301.0,0.01145462]
[1767071875931,0.01145291,87314.0,87302.0,0.01145449]
[1767071876147,0.02293265,87316.0,87303.0,0.01145436]
[1767071876353,0.01145265,87316.0,87304.0,0.01145422]
[1767071876585,0.02293265,87316.0,87304.0,0.01145422]
[1767071876737,0.02293265,87316.0,87303.0,0.01145436]
[1767071877143,0.02293265,87316.0,87304.0,0.01145422]
[1767071877361,0.01148,87316.0,87304.0,0.01145422]
[1767071877776,0.01148,87316.0,87305.0,0.01145409]
[1767071877979,0.01148,87316.0,87306.0,0.01145396]
[1767071878397,0.01148,87316.0,87307.0,0.01145383]
[1767071878597,0.02293265,87316.0,87303.0,0.01145436]
[1767071878897,0.02293265,87316.0,87304.0,0.01145422]
[1767071879062,0.01145291,87314.0,87302.0,0.01145449]
[1767071879398,0.01145278,87315.0,87303.0,0.01145436]
[1767071880349,0.01145265,87316.0,87304.0,0.01145422]
[1767071880561,0.02293252,87317.0,87304.0,0.01145422]
[1767071880763,0.01148,87317.0,87304.0,0.01145422]
[1767071880974,0.01148,87318.0,87307.0,0.01145383]
[1767071881417,0.02215091,87317.0,87304.0,0.06872475]
[1767071881593,0.01145265,87316.0,87304.0,0.06872475]
[1767071881819,0.53111672,87320.0,87304.0,0.06872475]
[1767071881820,0.01145186,87322.0,87316.0,0.000549]
[1767071882126,0.01069855,87321.0,87316.0,0.000549]
[1767071882328,0.01069855,87320.0,87309.0,0.01145357]
[1767071882554,0.01145199,87321.0,87309.0,0.01145357]
[1767071882677,0.01145186,87322.0,87309.0,0.01145357]
[1767071882875,0.01145186,87322.0,87310.0,0.51966459]
[1767071883076,0.01145199,87321.0,87310.0,0.50897459]
[1767071883372,0.01145213,87320.0,87310.0,0.50897459]
[1767071883861,0.01145226,87319.0,87307.0,0.01145383]
[1767071884392,0.01145213,87320.0,87308.0,0.0114537]
[1767071884605,0.01145226,87319.0,87307.0,0.01145383]
[1767071884821,0.01145213,87320.0,87308.0,0.0114537]
[1767071885201,0.01145186,87322.0,87309.0,0.01145357]
[1767071885409,0.01145186,87322.0,87310.0,0.53111803]
[1767071885602,0.04760812,87323.0,87311.0,0.01145331]
[1767071885844,0.04760812,87323.0,87310.0,0.53111803]
[1767071886044,0.01145186,87322.0,87310.0,0.53111803]
[1767071886247,0.04760812,87323.0,87310.0,0.53111803]
[1767071887553,0.01145186,87322.0,87310.0,0.53111803]
[1767071888539,0.01145199,87321.0,87307.0,0.06872237]
[1767071888715,0.01145199,87321.0,87310.0,0.51966459]
[1767071888914,0.01145213,87320.0,87310.0,0.51966459]
[1767071889734,0.01145199,87321.0,87310.0,0.51966459]
[1767071889893,0.0098057,87321.0,87310.0,0.51966459]
[1767071890095,0.01145186,87322.0,87311.0,0.0002]
[1767071890296,0.01145199,87321.0,87311.0,0.0002]
[1767071890857,0.01145186,87322.0,87311.0,0.0002]
[1767071893425,0.01145213,87320.0,87311.0,0.0002]
[1767071893626,0.01145265,87316.0,87311.0,0.0002]
[1767071893855,0.01145278,87315.0,87306.0,0.01148]
[1767071894385,0.01145265,87316.0,87306.0,0.01148]
[1767071894575,0.01071926,87315.0,87306.0,0.01148]
[1767071894724,0.01071926,87314.0,87306.0,0.01148]
[1767071894923,0.01145265,87316.0,87306.0,0.01148]
[1767071895129,0.01071926,87315.0,87306.0,0.01148]
[1767071895335,0.01071926,87314.0,87306.0,0.01148]
[1767071895652,0.01145265,87316.0,87306.0,0.01148]
[1767071895863,0.01071982,87315.0,87306.0,0.01148]
[1767071896201,0.01071982,87314.0,87306.0,0.01148]
[1767071896358,0.01145265,87316.0,87306.0,0.01148]
[1767071896566,0.01072023,87315.0,87306.0,0.01148]
[1767071896884,0.01072023,87314.0,87306.0,0.01148]
[1767071897082,0.01145265,87316.0,87306.0,0.01148]
[1767071897283,0.01072023,87315.0,87306.0,0.01148]
[1767071897485,0.01072023,87314.0,87306.0,0.01148]
[1767071898049,0.01072023,87314.0,87306.0,0.00293225]
[1767071898287,0.01145265,87316.0,87306.0,0.00293225]
[1767071898500,0.01072125,87315.0,87306.0,0.00293225]
[1767071898704,0.01072125,87314.0,87306.0,0.00293225]
[1767071898881,0.01145265,87316.0,87306.0,0.00293225]
[1767071899219,0.01072125,87315.0,87306.0,0.00293225]
[1767071899472,0.01072125,87314.0,87306.0,0.00293225]
[1767071899649,0.01145265,87316.0,87306.0,0.00293225]
[1767071899846,0.02217461,87315.0,87306.0,0.00293225]
[1767071900000,0.01072183,87314.0,87306.0,0.00293225]
[1767071900360,0.01145265,87316.0,87306.0,0.00293225]
[1767071900361,0.01072246,87313.0,87306.0,0.00293225]
[1767071900560,0.01145278,87315.0,87306.0,0.00293225]
[1767071900739,0.02217537,87314.0,87306.0,0.00293225]
[1767071900939,0.01072246,87313.0,87306.0,0.00293225]
[1767071901147,0.01145265,87316.0,87306.0,0.00293225]
[1767071901348,0.01072316,87315.0,87306.0,0.00293225]
[1767071901549,0.01072316,87314.0,87306.0,0.00293225]
[1767071901758,0.01072316,87313.0,87306.0,0.00293225]
[1767071901948,0.01145265,87316.0,87306.0,0.00293225]
[1767071902133,0.01072454,87315.0,87306.0,0.00293225]
[1767071902332,0.01072454,87314.0,87306.0,0.00293225]
[1767071903872,0.01072454,87313.0,87306.0,0.00293225]
[1767071904057,0.01145278,87315.0,87306.0,0.00293225]
[1767071904374,0.01072557,87314.0,87306.0,0.00293225]
[1767071904552,0.01072557,87313.0,87306.0,0.00293225]
[1767071904737,0.01145265,87316.0,87306.0,0.00293225]
[1767071904937,0.01072578,87315.0,87306.0,0.00293225]
[1767071905138,0.01072578,87314.0,87306.0,0.00293225]
[1767071905342,0.01072578,87313.0,87306.0,0.00293225]
[1767071905536,0.01145265,87316.0,87306.0,0.00293225]
[1767071905747,0.01072601,87315.0,87306.0,0.00293225]
[1767071905950,0.01072601,87314.0,87306.0,0.00293225]
[1767071906149,0.01145252,87317.0,87306.0,0.00293225]
[1767071906150,0.01072601,87313.0,87306.0,0.00293225]
[1767071906350,0.01145265,87316.0,87306.0,0.00293225]
[1767071906569,0.01072626,87315.0,87306.0,0.00293225]
[1767071906730,0.01072626,87314.0,87306.0,0.00293225]
[1767071906936,0.01072626,87313.0,87306.0,0.00293225]
[1767071907182,0.01145265,87316.0,87306.0,0.00293225]
[1767071907369,0.01072627,87315.0,87306.0,0.00293225]
[1767071907553,0.01072627,87314.0,87306.0,0.00293225]
[1767071907755,0.01072627,87313.0,87306.0,0.00293225]
[1767071907976,0.01145252,87317.0,87306.0,0.00293225]
[1767071908156,0.02217866,87316.0,87306.0,0.00293225]
[1767071908356,0.01072601,87315.0,87306.0,0.00293225]
[1767071910157,0.01072601,87315.0,87304.0,0.01145422]
[1767071910158,0.01072601,87315.0,87304.0,0.01679723]
[1767071910859,0.02217879,87315.0,87304.0,0.02293422]
[1767071911068,0.01072601,87314.0,87304.0,0.02293422]
[1767071911268,0.01072601,87313.0,87304.0,0.02293422]
[1767071911471,0.01145265,87316.0,87304.0,0.02293422]
[1767071911673,0.02217909,87315.0,87304.0,0.01148]
[1767071911890,0.01072631,87314.0,87304.0,0.01148]
[1767071912088,0.01072631,87313.0,87304.0,0.01148]
[1767071912288,0.01145278,87315.0,87304.0,0.01148]
[1767071912496,0.01072628,87314.0,87304.0,0.01148]
[1767071912654,0.01072628,87313.0,87304.0,0.01148]
[1767071912854,0.01145278,87315.0,87304.0,0.01148]
[1767071913091,0.01072629,87314.0,87304.0,0.01148]
[1767071913410,0.01072629,87313.0,87304.0,0.01148]
[1767071913571,0.01145278,87315.0,87304.0,0.01148]
[1767071913784,0.01072629,87314.0,87304.0,0.01148]
[1767071913963,0.01072629,87313.0,87304.0,0.01148]
[1767071914166,0.01145278,87315.0,87304.0,0.01148]
[1767071914553,0.01072627,87314.0,87304.0,0.01148]
[1767071914739,0.01072627,87313.0,87304.0,0.01148]
[1767071915036,0.01145278,87315.0,87304.0,0.01148]
[1767071915234,0.02217917,87314.0,87304.0,0.01148]
[1767071915444,0.01072626,87313.0,87304.0,0.01148]
[1767071915644,0.01145278,87315.0,87304.0,0.01148]
[1767071915946,0.01072623,87314.0,87304.0,0.01148]
[1767071916105,0.01072623,87313.0,87304.0,0.01148]
[1767071916309,0.01145278,87315.0,87304.0,0.01148]
[1767071916530,0.01072623,87314.0,87304.0,0.01148]
[1767071916728,0.01072623,87313.0,87304.0,0.01148]
[1767071916904,0.06871812,87314.0,87304.0,0.01148]
[1767071917105,0.01072621,87313.0,87304.0,0.01148]
[1767071917339,0.01145291,87314.0,87304.0,0.01148]
[1767071917510,0.0107262,87313.0,87304.0,0.01148]
[1767071917713,0.01145291,87314.0,87304.0,0.01148]
[1767071917907,0.0107262,87313.0,87304.0,0.01148]
[1767071918249,0.01145278,87315.0,87304.0,0.01148]
[1767071918460,0.02217921,87314.0,87304.0,0.01148]
[1767071918787,0.0107263,87313.0,87304.0,0.01148]
[1767071918972,0.01145278,87315.0,87304.0,0.01148]
[1767071919178,0.0107263,87314.0,87304.0,0.01148]
[1767071919372,0.0107263,87313.0,87304.0,0.01148]
[1767071919622,0.01145278,87315.0,87304.0,0.02293422]
[1767071919784,0.01072643,87314.0,87304.0,0.01148]
[1767071919990,0.01072643,87313.0,87304.0,0.01148]
[1767071920190,0.01145278,87315.0,87304.0,0.01148]
[1767071920393,0.01072662,87314.0,87304.0,0.02293422]
[1767071920572,0.01072662,87313.0,87304.0,0.02293422]
[1767071920776,0.01145265,87316.0,87304.0,0.02293422]
[1767071920972,0.01072661,87315.0,87304.0,0.02293422]
[1767071921181,0.01072661,87314.0,87304.0,0.02293422]
[1767071921381,0.01072661,87313.0,87304.0,0.01148]
[1767071921589,0.01145278,87315.0,87304.0,0.01148]
[1767071921806,0.01072687,87314.0,87304.0,0.01148]
[1767071922122,0.01072687,87313.0,87304.0,0.01148]
[1767071922409,0.01145278,87315.0,87304.0,0.01148]
[1767071922611,0.01072723,87314.0,87304.0,0.01148]
[1767071922821,0.01072723,87313.0,87304.0,0.01148]
[1767071922995,0.01145278,87315.0,87304.0,0.01148]
[1767071923175,0.01072724,87314.0,87304.0,0.01148]
[1767071923382,0.01072724,87313.0,87304.0,0.01148]
[1767071923588,0.01145278,87315.0,87304.0,0.01148]
[1767071923589,0.01072724,87312.0,87304.0,0.01148]
[1767071923788,0.01145278,87315.0,87304.0,0.01148]
[1767071923985,0.01072786,87314.0,87304.0,0.02293422]
[1767071924212,0.01072786,87313.0,87304.0,0.01148]
[1767071924389,0.01072786,87312.0,87304.0,0.01148]
[1767071924586,0.01145278,87315.0,87304.0,0.01148]
[1767071924795,0.0107256,87314.0,87304.0,0.01148]
[1767071924995,0.0107256,87313.0,87304.0,0.01148]
[1767071925194,0.0107256,87312.0,87304.0,0.01148]
[1767071925414,0.01145278,87315.0,87304.0,0.01148]
[1767071925612,0.01072541,87314.0,87304.0,0.01148]
[1767071925790,0.01072541,87313.0,87304.0,0.01148]
[1767071925976,0.01072541,87312.0,87304.0,0.01148]
[1767071926178,0.05726589,87312.0,87300.0,9e-05]
[1767071926378,0.0114537,87308.0,87300.0,9e-05]
[1767071926796,0.13122771,87310.0,87300.0,4.8e-05]
[1767071927167,0.11977427,87310.0,87298.0,0.01148]
[1767071927343,0.11977427,87310.0,87300.0,0.01145475]
[1767071927702,0.11977427,87310.0,87299.0,0.01145488]
[1767071927897,0.13122771,87310.0,87298.0,0.01150444]
[1767071928297,0.11977427,87310.0,87298.0,0.01150444]
[1767071928697,0.11977427,87310.0,87299.0,0.01145488]
[1767071930707,0.13122771,87310.0,87298.0,0.01150444]
[1767071931049,0.0114537,87308.0,87298.0,4.943e-05]
[1767071931253,0.05727442,87299.0,87298.0,4.943e-05]
[1767071931495,0.05727442,87299.0,87281.0,0.14414]
[1767071931496,0.01145554,87294.0,87281.0,0.14414]
[1767071931695,0.0114558,87292.0,87288.0,0.00056]
[1767071931898,0.01090554,87294.0,87288.0,0.00056]
[1767071932095,0.0114554,87295.0,87288.0,0.00056]
[1767071934273,0.01145554,87294.0,87288.0,0.00056]
[1767071934477,0.0114554,87295.0,87288.0,0.00056]
[1767071934928,0.01145554,87294.0,87288.0,0.00056]
[1767071935332,0.01145567,87293.0,87288.0,1.1e-05]
[1767071935494,0.01145554,87294.0,87288.0,1.1e-05]
[1767071935701,0.01145567,87293.0,87288.0,1.1e-05]
[1767071936497,0.01145554,87294.0,87288.0,1.1e-05]
[1767071937692,0.0114554,87295.0,87288.0,1.1e-05]
[1767071937996,0.01145554,87294.0,87288.0,1.1e-05]
[1767071938297,0.0114558,87292.0,87288.0,1.1e-05]
[1767071938523,0.01145593,87291.0,87288.0,1.1e-05]
[1767071939178,0.01145685,87284.0,87281.0,0.01148]
[1767071939359,0.00055,87281.0,87277.0,0.0001461]
[1767071939972,0.01181621,87284.0,87277.0,0.00010471]
[1767071940144,0.01145698,87283.0,87277.0,0.00010471]
[1767071941033,0.01181621,87284.0,87277.0,0.00010471]
[1767071941879,0.00035936,87284.0,87277.0,0.00010471]
[1767071942359,3.6e-07,87284.0,87277.0,0.00010471]
[1767071943231,0.01145721,87284.0,87277.0,0.00010471]
[1767071943517,3.6e-07,87284.0,87277.0,0.00010471]
[1767071944118,0.01145721,87284.0,87277.0,0.00010471]
[1767071944487,0.01145698,87283.0,87277.0,0.00010471]
[1767071944692,0.01145711,87282.0,87277.0,0.00010471]
[1767071944924,0.01145698,87283.0,87277.0,0.00010471]
[1767071945934,0.01145711,87282.0,87277.0,7.1e-07]
[1767071946109,0.01145721,87284.0,87277.0,7.1e-07]
[1767071946548,3.6e-07,87284.0,87277.0,7.1e-07]
[1767071951445,3.6e-07,87284.0,87278.0,0.01145764]
[1767071951652,3.6e-07,87284.0,87277.0,0.01145848]
[1767071951895,3.6e-07,87284.0,87278.0,0.01145764]
[1767071952070,3.6e-07,87284.0,87280.0,0.01145737]
[1767071952253,3.6e-07,87284.0,87279.0,0.0114575]
[1767071952674,3.6e-07,87284.0,87278.0,0.01145764]
[1767071953075,3.6e-07,87284.0,87277.0,0.06874717]
[1767071953076,3.6e-07,87284.0,87277.0,0.01145848]
[1767071953513,3.6e-07,87284.0,87277.0,7.1e-07]
[1767071954597,3.6e-07,87284.0,87278.0,0.01145764]
[1767071954974,3.6e-07,87284.0,87277.0,0.01145848]
[1767071956300,3.6e-07,87284.0,87278.0,0.01145764]
[1767071957619,3.6e-07,87284.0,87277.0,0.01145848]
[1767071958435,3.6e-07,87284.0,87278.0,0.01145764]
[1767071958969,3.6e-07,87284.0,87277.0,0.01145848]
[1767071959950,3.6e-07,87284.0,87277.0,7.1e-07]
[1767071960116,0.00025429,87277.0,87275.0,0.01148]
[1767071960316,3.6e-07,87284.0,87275.0,0.01148]
[1767071960914,0.01145721,87284.0,87275.0,0.01148]
[1767071961437,3.6e-07,87284.0,87275.0,0.01148]
[1767071961639,3.6e-07,87284.0,87275.0,0.02293803]
[1767071961803,0.01148,87289.0,87280.0,0.01145737]
[1767071962006,0.01148,87289.0,87280.0,0.01152739]
[1767071962209,0.01148,87289.0,87280.0,7.002e-05]
[1767071962407,0.01148,87289.0,87280.0,0.01152739]
[1767071962812,0.01148,87289.0,87281.0,0.01145724]
[1767071963642,0.01148,87289.0,87280.0,0.01152739]
[1767071963846,0.01148,87289.0,87280.0,7.002e-05]
[1767071964076,0.01145593,87291.0,87280.0,7.002e-05]
[1767071964218,0.01070916,87290.0,87280.0,7.002e-05]
[1767071964420,0.01145606,87290.0,87280.0,7.002e-05]
[1767071964714,0.01145593,87291.0,87280.0,7.002e-05]
[1767071964937,0.01148,87292.0,87280.0,0.01145737]
[1767071965141,0.0229358,87292.0,87280.0,0.01145737]
[1767071965418,0.01148,87292.0,87280.0,0.01145737]
[1767071966800,0.01148,87292.0,87281.0,0.01145724]
[1767071967258,0.0229358,87292.0,87279.0,0.52122945]
[1767071967483,0.01145593,87291.0,87279.0,0.52128707]
[1767071967684,0.0229358,87292.0,87280.0,0.01145737]
[1767071967907,0.0229358,87292.0,87279.0,0.50982957]
[1767071967908,0.01145606,87290.0,87279.0,0.50982957]
[1767071968283,0.01145593,87291.0,87279.0,0.52128707]
[1767071968709,0.01145606,87290.0,87279.0,0.50982957]
[1767071969204,0.0229358,87292.0,87280.0,0.01145737]
[1767071969409,0.01148,87292.0,87282.0,0.01145711]
[1767071969566,0.01148,87292.0,87281.0,0.01145724]
[1767071969753,0.01148,87292.0,87280.0,0.01145737]
[1767071969754,0.01145593,87291.0,87280.0,0.01145737]
[1767071969955,0.01145593,87291.0,87279.0,0.50982957]
[1767071971208,0.04761632,87292.0,87280.0,0.01145737]
[1767071971677,0.03616052,87292.0,87280.0,0.01145737]
[1767071971885,0.01148,87292.0,87281.0,0.01145724]
[1767071972109,0.01148,87292.0,87279.0,0.52128707]
[1767071972303,0.01145593,87291.0,87279.0,0.52128707]
[1767071972514,0.04761632,87292.0,87279.0,0.52128707]
[1767071972827,0.03616052,87292.0,87281.0,0.01145724]
[1767071972971,0.01148,87292.0,87280.0,0.01145737]
[1767071973177,0.01145593,87291.0,87279.0,0.52128707]
[1767071973574,0.0229358,87292.0,87280.0,0.01145737]
[1767071973929,0.01148,87292.0,87281.0,0.01145724]
[1767071975958,0.01145593,87291.0,87279.0,0.52128707]
[1767071976303,0.02217574,87290.0,87279.0,0.50982957]
[1767071976503,0.01071968,87289.0,87279.0,0.52128707]
[1767071976730,0.01145593,87291.0,87279.0,0.52128707]
[1767071976941,0.01145606,87290.0,87279.0,0.50982957]
[1767071977128,0.01145619,87289.0,87280.0,0.52041193]
[1767071978200,0.01145606,87290.0,87280.0,0.52041193]
[1767071978387,0.01145593,87291.0,87280.0,0.52041193]
[1767071979545,0.04763441,87292.0,87280.0,0.5318693]
[1767071980286,0.01145593,87291.0,87280.0,0.5318693]
[1767071980490,0.04763441,87292.0,87280.0,0.5318693]
[1767071980791,0.03617861,87292.0,87281.0,0.01145724]
[1767071981089,4.27e-06,87295.0,87285.0,0.01145672]
[1767071981250,4.27e-06,87295.0,87285.0,0.53186865]
[1767071981454,4.27e-06,87295.0,87286.0,0.01145659]
[1767071981653,4.27e-06,87295.0,87285.0,0.39332524]
[1767071982057,0.02293514,87297.0,87285.0,0.40478196]
[1767071982259,0.02293514,87297.0,87287.0,0.52041193]
[1767071982459,0.01148,87297.0,87287.0,0.52041193]
[1767071982659,0.01148,87297.0,87287.0,0.51444193]
[1767071983450,0.01148,87297.0,87287.0,0.52589838]
[1767071983850,0.01148,87297.0,87288.0,0.01145632]
[1767071984149,0.01148,87297.0,87287.0,0.52589838]
[1767071984373,0.01148,87297.0,87288.0,0.01145632]
[1767071984630,0.01148,87297.0,87287.0,0.52589838]
[1767071985119,0.02308098,87299.0,87287.0,0.52589838]
[1767071985316,0.0116261,87299.0,87289.0,0.52041193]
[1767071985881,0.01145344,87310.0,87299.0,0.000145]
[1767071986102,0.0002,87309.0,87299.0,0.000145]
[1767071986302,0.0002,87309.0,87300.0,0.01145475]
[1767071986782,0.0002,87309.0,87299.0,0.01145488]
[1767071987104,0.0002,87309.0,87300.0,0.01145475]
[1767071987500,0.0002,87309.0,87297.0,0.02293514]
[1767071987719,0.0002,87309.0,87299.0,0.01145488]
[1767071988714,0.01070653,87307.0,87299.0,0.01145488]
[1767071988919,0.0002,87309.0,87299.0,0.01145488]
[1767071989482,0.0002,87309.0,87298.0,0.01145501]
[1767071989483,0.0002,87309.0,87298.0,0.53186694]
[1767071989893,0.0002,87309.0,87299.0,0.01145488]
[1767071990169,0.0002,87309.0,87298.0,0.53186694]
[1767071990341,0.0002,87309.0,87298.0,0.52041193]
[1767071990755,0.0002,87309.0,87298.0,0.53186694]
[1767071990959,0.01165357,87309.0,87298.0,0.52041193]
[1767071991274,0.0115998,87308.0,87298.0,0.52041193]
[1767071991477,0.0115998,87308.0,87298.0,0.52000793]
[1767071991703,0.01145383,87307.0,87298.0,0.52000793]
[1767071991883,0.01145396,87306.0,87298.0,0.52000793]
[1767071992213,0.01145383,87307.0,87297.0,0.01148]
[1767071992491,0.01145396,87306.0,87297.0,0.01148]
[1767071992843,0.01145396,87306.0,87297.0,0.01093]
[1767071992844,0.01145436,87303.0,87297.0,0.01093]
[1767071993026,0.01145422,87304.0,87297.0,0.01093]
[1767071993230,0.0687244,87306.0,87297.0,0.01093]
[1767071993843,0.01145409,87305.0,87297.0,0.01093]
[1767071994052,0.01145422,87304.0,87297.0,0.01093]
[1767071995854,0.01145409,87305.0,87297.0,0.01093]
[1767071996384,0.01145396,87306.0,87297.0,0.01093]
[1767071996592,0.01145409,87305.0,87297.0,0.01093]
[1767071998758,0.01145436,87303.0,87297.0,0.01093]
[1767071998970,0.01145422,87304.0,87297.0,0.01093]
[1767071999292,0.01145436,87303.0,87297.0,0.01093]
[1767071999861,0.01145422,87304.0,87297.0,0.01093]
[1767072000484,0.01145436,87303.0,87297.0,0.01093]
[1767072000688,0.01145422,87304.0,87297.0,0.01093]
[1767072001760,0.01145409,87305.0,87297.0,0.01093]
[1767072002391,0.01145422,87304.0,87297.0,0.01093]
[1767072003103,0.01145436,87303.0,87297.0,0.01093]
[1767072003448,0.01145422,87304.0,87297.0,0.01093]
[1767072003654,0.01145436,87303.0,87297.0,0.01093]
[1767072003878,0.01145449,87302.0,87297.0,0.01093]
[1767072004080,0.01145462,87301.0,87297.0,0.01093]
[1767072004288,0.01145475,87300.0,87297.0,0.00041717]
[1767072004495,0.05727701,87296.0,87289.0,0.0002]
[1767072004728,0.01145514,87297.0,87289.0,0.0002]
[1767072005237,0.01145527,87296.0,87289.0,0.0002]
[1767072005460,0.0114554,87295.0,87289.0,0.0002]
[1767072005687,0.01145527,87296.0,87289.0,0.0002]
[1767072005857,0.0114554,87295.0,87289.0,0.0002]
[1767072006059,0.01145527,87296.0,87289.0,0.0002]
[1767072006694,0.01145514,87297.0,87289.0,0.0002]
[1767072007255,0.06875258,87302.0,87289.0,0.0002]
[1767072007427,0.01148,87302.0,87291.0,0.52041193]
[1767072007629,0.01148,87302.0,87291.0,0.53186786]
[1767072008866,0.02293449,87302.0,87291.0,0.52041193]
[1767072009502,0.13122863,87303.0,87292.0,0.52041193]
[1767072009689,0.18850072,87303.0,87292.0,0.52041193]
[1767072009897,0.18850072,87303.0,87290.0,0.53186799]
[1767072010191,0.01145462,87301.0,87290.0,0.52041193]
[1767072010434,0.01145449,87302.0,87290.0,0.52041193]
[1767072010643,0.01145449,87302.0,87290.0,0.53186799]
[1767072010848,0.13122863,87303.0,87291.0,0.01145593]
[1767072011169,0.13122863,87303.0,87290.0,0.53186799]